bitfinex/quotes_BTCUSD_20250902
["timestamp","ask_amount","ask_price","bid_price","bid_amount"]
[1756856718515,0.19368769,111300.0,111290.0,0.43678243]
[1756856720076,0.01399318,111300.0,111290.0,0.43678243]
[1756856720647,0.19368769,111300.0,111290.0,0.43678243]
[1756856721047,0.01399318,111300.0,111290.0,0.43678243]
[1756856721405,0.01399318,111300.0,111290.0,0.7861493]
[1756856722914,0.01399318,111300.0,111290.0,0.43678243]
[1756856723391,0.01399318,111300.0,111290.0,0.7861493]
[1756856724743,0.01399318,111300.0,111290.0,0.43678243]
[1756856724945,0.01399318,111300.0,111290.0,0.7861493]
[1756856725141,0.19368769,111300.0,111290.0,0.7861493]
[1756856726360,0.01399318,111300.0,111290.0,0.7861493]
[1756856729347,0.01399318,111300.0,111290.0,0.28654243]
[1756856729629,0.01399318,111300.0,111290.0,0.43678243]
[1756856729797,0.01399318,111300.0,111290.0,0.7861493]
[1756856735478,0.19571769,111300.0,111290.0,0.43678243]
[1756856735747,0.54508456,111300.0,111290.0,0.43678243]
[1756856737502,0.54305456,111300.0,111290.0,0.43678243]
[1756856738122,0.19368769,111300.0,111290.0,0.43678243]
[1756856738321,0.54305456,111300.0,111290.0,0.43678243]
[1756856738620,0.54305456,111300.0,111290.0,0.28654243]
[1756856738823,0.54515456,111300.0,111290.0,0.43678243]
[1756856739459,0.54305456,111300.0,111290.0,0.43678243]
[1756856739706,0.54515456,111300.0,111290.0,0.43678243]
[1756856739912,0.54305456,111300.0,111290.0,0.43678243]
[1756856740693,0.01399318,111300.0,111290.0,0.43678243]
[1756856740966,0.01399318,111300.0,111290.0,0.7861493]
[1756856741533,0.01399318,111300.0,111290.0,0.43678243]
[1756856741937,0.01399318,111300.0,111290.0,0.46379027]
[1756856743922,0.01399318,111300.0,111290.0,0.81315714]
[1756856745600,0.19368769,111300.0,111290.0,0.46379027]
[1756856751739,0.01399318,111300.0,111290.0,0.46379027]
[1756856751951,0.01399318,111300.0,111290.0,0.81315714]
[1756856754245,0.01399318,111300.0,111290.0,0.46379027]
[1756856757350,0.19368769,111300.0,111290.0,0.30463449]
[1756856757563,0.19368769,111300.0,111290.0,0.11992383]
[1756856757564,0.89767143,111300.0,111290.0,0.11992383]
[1756856757747,0.92153299,111300.0,111290.0,0.17820784]
[1756856757989,0.92468299,111300.0,111290.0,0.1512]
[1756856759297,0.92153299,111300.0,111290.0,0.1512]
[1756856759506,0.57216612,111300.0,111290.0,0.1512]
[1756856760619,0.57531612,111300.0,111290.0,0.1512]
[1756856760821,0.92468299,111300.0,111290.0,0.1512]
[1756856761033,0.89767143,111300.0,111290.0,0.1512]
[1756856761239,0.89452143,111300.0,111290.0,0.1512]
[1756856761445,0.54515456,111300.0,111290.0,0.1512]
[1756856761938,0.19578769,111300.0,111290.0,0.1512]
[1756856762155,0.54515456,111300.0,111290.0,0.33604066]
[1756856762369,0.01399318,111300.0,111290.0,0.77732352]
[1756856769611,0.01399318,111300.0,111290.0,0.42795665]
[1756856775165,0.19584769,111300.0,111290.0,0.24824599]
[1756856775378,0.54801963,111300.0,111290.0,0.24311599]
[1756856775588,0.54801963,111300.0,111290.0,0.24315599]
[1756856777918,0.19584769,111300.0,111290.0,0.24315599]
[1756856778137,0.54507963,111300.0,111290.0,0.24315599]
[1756856780814,0.19584769,111300.0,111290.0,0.24846599]
[1756856781028,0.54507963,111300.0,111290.0,0.24315599]
[1756856783952,0.54507963,111300.0,111290.0,0.42286665]
[1756856785573,0.01615318,111300.0,111290.0,0.42501665]
[1756856785780,0.01399318,111300.0,111290.0,0.42817665]
[1756856788779,0.01399318,111300.0,111290.0,0.45518508]
[1756856789731,0.01399318,111300.0,111290.0,0.72438508]
[1756856791254,0.01399318,111300.0,111290.0,0.72338508]
[1756856791665,0.01399318,111300.0,111290.0,0.72438508]
[1756856792301,0.01399318,111300.0,111290.0,0.72338508]
[1756856792736,0.01399318,111300.0,111290.0,0.72538508]
[1756856793176,0.01399318,111300.0,111290.0,0.72638508]
[1756856794533,0.01399318,111300.0,111290.0,0.72938508]
[1756856796897,0.01399318,111300.0,111290.0,1.07861702]
[1756856797711,0.01399318,111300.0,111290.0,0.72938508]
[1756856799696,0.01399318,111300.0,111290.0,0.57914508]
[1756856799906,0.01611318,111300.0,111290.0,0.72934508]
[1756856800120,0.01399318,111300.0,111290.0,0.72934508]
[1756856803617,0.01399318,111300.0,111290.0,0.57914508]
[1756856803842,0.01399318,111300.0,111290.0,0.72934508]
[1756856807919,0.19368769,111300.0,111290.0,0.72934508]
[1756856808566,0.01399318,111300.0,111290.0,0.72934508]
[1756856808777,0.19368769,111300.0,111290.0,0.72934508]
[1756856809043,0.19368769,111300.0,111290.0,0.39412442]
[1756856809044,0.54503963,111300.0,111290.0,0.39412442]
[1756856809262,0.54817963,111300.0,111290.0,0.51731599]
[1756856809467,0.54503963,111300.0,111290.0,0.69702665]
[1756856809690,0.19580769,111300.0,111290.0,0.69702665]
[1756856810330,0.19580769,111300.0,111290.0,0.70211665]
[1756856811611,0.19368769,111300.0,111290.0,0.70211665]
[1756856812543,0.19580769,111300.0,111290.0,0.70211665]
[1756856813386,0.19580769,111300.0,111290.0,0.43291665]
[1756856815508,0.19368769,111300.0,111290.0,0.43291665]
[1756856816848,0.19580769,111300.0,111290.0,0.43291665]
[1756856820154,0.19368769,111300.0,111290.0,0.43291665]
[1756856821623,0.01399318,111300.0,111290.0,0.43291665]
[1756856821844,0.01399318,111300.0,111290.0,0.78214859]
[1756856822490,0.01399318,111300.0,111290.0,0.80915638]
[1756856822702,0.54503963,111300.0,111290.0,0.12691378]
[1756856822939,0.54503963,111300.0,111290.0,0.42981665]
[1756856823158,0.54503963,111300.0,111290.0,0.43291665]
[1756856823363,0.19580769,111300.0,111290.0,0.43291665]
[1756856827663,0.19580769,111300.0,111290.0,0.28271665]
[1756856827816,0.19580769,111300.0,111290.0,0.43291665]
[1756856828251,0.19580769,111300.0,111290.0,0.70211665]
[1756856829523,0.54511055,111300.0,111290.0,0.70211665]
[1756856830839,0.19580769,111300.0,111290.0,0.70211665]
[1756856831046,0.54511055,111300.0,111290.0,0.70211665]
[1756856832431,0.54299055,111300.0,111290.0,0.70211665]
[1756856832727,0.01399318,111300.0,111290.0,0.70211665]
[1756856833112,0.36329604,111300.0,111290.0,0.70211665]
[1756856833513,0.01399318,111300.0,111290.0,0.70211665]
[1756856833722,0.36329604,111300.0,111290.0,0.70211665]
[1756856835526,0.54299055,111300.0,111290.0,0.70211665]
[1756856840249,0.19368769,111300.0,111290.0,0.70211665]
[1756856840483,0.01399318,111300.0,111290.0,0.70211665]
[1756856841984,0.01399318,111300.0,111290.0,1.05141951]
[1756856842673,0.01399318,111300.0,111290.0,1.07591951]
[1756856844732,0.01399318,111300.0,111290.0,0.72661665]
[1756856844950,0.19368769,111300.0,111290.0,1.05141951]
[1756856845154,0.19368769,111300.0,111290.0,0.70211665]
[1756856845372,0.19368769,111300.0,111290.0,1.05141951]
[1756856845585,0.19368769,111300.0,111290.0,0.70211665]
[1756856845778,0.19368769,111300.0,111290.0,0.55191665]
[1756856846013,0.54299055,111300.0,111290.0,0.70219665]
[1756856846352,0.54516055,111300.0,111290.0,0.55191665]
[1756856846572,0.54516055,111300.0,111290.0,0.69710665]
[1756856846757,0.54516055,111300.0,111290.0,0.70216665]
[1756856847214,0.54516055,111300.0,111290.0,0.52245599]
[1756856847969,0.54516055,111300.0,111290.0,0.72917541]
[1756856849907,0.19368769,111300.0,111290.0,0.72917541]
[1756856852718,0.54299055,111300.0,111290.0,0.72917541]
[1756856852911,0.54299055,111300.0,111290.0,0.54954475]
[1756856852912,0.54516055,111300.0,111290.0,0.54954475]
[1756856854783,0.54516055,111300.0,111290.0,0.72925541]
[1756856857949,0.19368769,111300.0,111290.0,0.72925541]
[1756856858200,0.54299055,111300.0,111290.0,0.72925541]
[1756856858726,0.01399318,111300.0,111290.0,0.72925541]
[1756856859104,0.01399318,111300.0,111290.0,1.07855827]
[1756856867728,0.01399318,111300.0,111290.0,0.72925541]
[1756856867946,0.54299055,111300.0,111290.0,0.72925541]
[1756856869280,0.54495055,111300.0,111290.0,0.72925541]
[1756856869714,0.54299055,111300.0,111290.0,0.72925541]
[1756856869922,0.54495055,111300.0,111290.0,0.72928541]
[1756856870139,0.54299055,111300.0,111290.0,0.72928541]
[1756856870351,0.01399318,111300.0,111290.0,0.72928541]
[1756856870555,0.01399318,111300.0,111290.0,1.07858827]
[1756856870775,0.01399318,111300.0,111290.0,0.72928541]
[1756856870988,0.01399318,111300.0,111290.0,1.07858827]
[1756856878425,0.01399318,111300.0,111290.0,1.14190827]
[1756856884688,0.01399318,111300.0,111290.0,0.87270827]
[1756856889465,0.01399318,111300.0,111290.0,0.87259651]
[1756856890217,0.01399318,111300.0,111290.0,1.14179651]
[1756856890418,0.01399318,111300.0,111290.0,0.81564541]
[1756856890662,0.01399318,111300.0,111290.0,1.16483651]
[1756856892499,0.01399318,111300.0,111290.0,0.81564541]
[1756856892680,0.01399318,111300.0,111290.0,1.16483651]
[1756856897483,0.01399318,111300.0,111290.0,1.01455651]
[1756856897633,0.01399318,111300.0,111290.0,1.16479651]
[1756856901902,0.09991608,111300.0,111290.0,1.16479651]
[1756856907219,0.09991608,111300.0,111290.0,1.18573533]
[1756856907406,0.09991608,111300.0,111290.0,1.53492643]
[1756856907611,0.09991608,111300.0,111290.0,1.18573533]
[1756856907858,0.09991608,111300.0,111290.0,1.26653864]
[1756856908064,0.09991608,111300.0,111290.0,1.68652974]
[1756856908689,0.09991608,111300.0,111290.0,1.95572974]
[1756856909102,0.09991608,111300.0,111290.0,1.68652974]
[1756856910437,0.09991608,111300.0,111290.0,1.18709864]
[1756856910651,0.09991608,111300.0,111290.0,1.33733864]
[1756856910871,0.09991608,111300.0,111290.0,1.33737864]
[1756856911147,0.09991608,111300.0,111290.0,1.31433864]
[1756856917023,0.09991608,111300.0,111290.0,0.96514754]
[1756856917223,0.09991608,111300.0,111290.0,1.31433864]
[1756856917634,0.09991608,111300.0,111290.0,1.66352974]
[1756856917763,0.09991608,111300.0,111290.0,1.68656974]
[1756856918178,0.09991608,111300.0,111290.0,1.33737864]
[1756856919038,0.09991608,111300.0,111290.0,1.68656974]
[1756856919468,0.09991608,111300.0,111290.0,1.33737864]
[1756856919886,0.10205608,111300.0,111290.0,0.80969754]
[1756856920087,0.10205608,111300.0,111290.0,1.13794982]
[1756856920297,0.10511608,111300.0,111290.0,0.59899872]
[1756856920511,0.10511608,111300.0,111290.0,0.86738651]
[1756856920708,0.10205608,111300.0,111290.0,0.86738651]
[1756856925561,0.10205608,111300.0,111290.0,0.86951651]
[1756856925766,0.09991608,111300.0,111290.0,0.87276651]
[1756856925968,0.10205608,111300.0,111290.0,0.86738651]
[1756856926816,0.10205608,111300.0,111290.0,0.86951651]
[1756856927658,0.10205608,111300.0,111290.0,0.87276651]
[1756856930935,0.10511608,111300.0,111290.0,0.36795541]
[1756856931358,0.28481059,111300.0,111290.0,0.51815541]
[1756856931562,0.28949789,111300.0,111290.0,0.51815541]
[1756856931762,0.10980338,111300.0,111290.0,0.51815541]
[1756856940485,0.10674338,111300.0,111290.0,0.51815541]
[1756856940723,0.10674338,111300.0,111290.0,0.52028541]
[1756856941512,0.10674338,111300.0,111290.0,0.51815541]
[1756856943833,0.10674338,111300.0,111290.0,0.52028541]
[1756856944121,0.10674338,111300.0,111290.0,0.52353541]
[1756856945625,0.10674338,111300.0,111290.0,0.51815541]
[1756856945868,0.28643789,111300.0,111290.0,0.36795541]
[1756856946133,0.28643789,111300.0,111290.0,0.31143599]
[1756856946134,0.63868899,111300.0,111290.0,0.31143599]
[1756856946375,0.66569865,111300.0,111290.0,0.31143599]
[1756856946778,0.31650755,111300.0,111290.0,0.31143599]
[1756856947883,0.28949789,111300.0,111290.0,0.31143599]
[1756856948250,0.28949789,111300.0,111290.0,0.21952]
[1756856948251,0.63868899,111300.0,111290.0,0.21952]
[1756856948477,0.66570065,111300.0,111290.0,0.21952]
[1756856949127,0.66570065,111300.0,111290.0,0.21652]
[1756856949514,0.66585772,111300.0,111290.0,0.21652]
[1756856950496,0.66585772,111300.0,111290.0,0.21852]
[1756856950849,0.66585772,111300.0,111290.0,0.21652]
[1756856951263,0.66585772,111300.0,111290.0,0.21952]
[1756856954501,1.01520589,111300.0,111290.0,0.21952]
[1756856954965,0.66585772,111300.0,111290.0,0.21952]
[1756856955424,1.35520589,111300.0,111290.0,0.06932]
[1756856955640,1.40784958,111300.0,111290.0,0.1562]
[1756856956056,1.35520589,111300.0,111290.0,0.1562]
[1756856956262,1.36414061,111300.0,111290.0,0.1532]
[1756856956733,1.36414061,111300.0,111290.0,0.1552]
[1756856957344,1.36414061,111300.0,111290.0,0.1522]
[1756856957758,1.36414061,111300.0,111290.0,0.1542]
[1756856957993,1.36414061,111300.0,111290.0,0.1522]
[1756856958437,1.36414061,111300.0,111290.0,0.1542]
[1756856961712,1.36414061,111300.0,111290.0,0.004]
[1756856961713,1.82634359,111300.0,111290.0,0.004]
[1756856961943,1.87898728,111300.0,111290.0,0.004]
[1756856962616,0.83094277,111300.0,111290.0,0.002]
[1756856962835,2.04851963,111300.0,111290.0,0.002]
[1756856963045,2.04851963,111300.0,111290.0,0.003]
[1756856963470,2.04851963,111300.0,111290.0,0.001]
[1756856963864,1.89831963,111300.0,111290.0,0.001]
[1756856964080,2.04851963,111300.0,111290.0,0.001]
[1756856964299,2.04851963,111300.0,111270.0,0.1502]
[1756856964300,0.17972681,111280.0,111270.0,0.1502]
[1756856964539,0.88353315,111280.0,111270.0,0.1502]
[1756856964957,0.91524144,111280.0,111270.0,0.1502]
[1756856965525,0.2134151,111280.0,111270.0,0.1542]
[1756856965727,0.91211144,111280.0,111270.0,0.1542]
[1756856966683,0.91524144,111280.0,111270.0,0.1542]
[1756856967131,0.91211144,111280.0,111270.0,0.1542]
[1756856970849,0.2134151,111280.0,111270.0,0.15943]
[1756856971056,0.91211144,111280.0,111270.0,0.15943]
[1756856971262,0.91013144,111280.0,111270.0,0.15943]
[1756856971473,0.56078327,111280.0,111270.0,0.15943]
[1756856973580,0.91013144,111280.0,111270.0,0.15943]
[1756856975844,0.56078327,111280.0,111270.0,0.15943]
[1756856977350,0.90078327,111280.0,111270.0,0.15943]
[1756856978724,0.5514351,111280.0,111270.0,0.15943]
[1756856978975,0.90078327,111280.0,111270.0,0.15943]
[1756856981846,0.5514351,111280.0,111270.0,0.15943]
[1756856982075,0.90078327,111280.0,111270.0,0.15943]
[1756856983657,0.90078327,111280.0,111270.0,0.00923]
[1756856983860,0.90292327,111280.0,111270.0,0.15947]
[1756856984060,1.25545144,111280.0,111270.0,0.15424]
[1756856984285,1.25545144,111280.0,111270.0,0.004]
[1756856984503,1.25545144,111280.0,111270.0,0.15424]
[1756856988439,1.25545144,111280.0,111270.0,0.15024]
[1756856988681,1.25545144,111280.0,111270.0,0.15124]
[1756856990006,1.25545144,111280.0,111270.0,0.15024]
[1756856990373,1.25545144,111280.0,111270.0,0.15124]
[1756856993019,1.25227144,111280.0,111270.0,0.15124]
[1756856999621,1.25545144,111280.0,111270.0,0.15124]
[1756857000067,1.25227144,111280.0,111270.0,0.15124]
[1756857001511,1.25545144,111280.0,111270.0,0.15124]
[1756857002147,1.25227144,111280.0,111270.0,0.15124]
[1756857003180,0.5535751,111280.0,111270.0,0.15333]
[1756857003403,1.25227144,111280.0,111270.0,0.15635]
[1756857004634,0.5535751,111280.0,111270.0,0.15635]
[1756857004846,1.25013144,111280.0,111270.0,0.15635]
[1756857005064,1.25227144,111280.0,111270.0,0.15635]
[1756857009690,0.90308503,111280.0,111270.0,0.15635]
[1756857010633,0.5514351,111280.0,111270.0,0.15635]
[1756857012891,0.90094503,111280.0,111270.0,0.15635]
[1756857013093,0.90310503,111280.0,111270.0,0.15635]
[1756857013305,0.90310503,111280.0,111270.0,0.00611]
[1756857013538,0.90310503,111280.0,111270.0,0.15635]
[1756857014176,0.90310503,111280.0,111270.0,0.15333]
[1756857014591,0.90310503,111280.0,111270.0,0.15636]
[1756857014932,0.90310503,111280.0,111270.0,0.00309]
[1756857015129,0.90310503,111280.0,111270.0,0.15124]
[1756857015347,0.90094503,111280.0,111270.0,0.1563]
[1756857015905,0.90310503,111280.0,111270.0,0.1563]
[1756857016310,0.90310503,111280.0,111270.0,0.001]
[1756857016510,0.90310503,111280.0,111270.0,0.15327]
[1756857016953,0.90310503,111280.0,111270.0,0.1563]
[1756857017382,0.5535951,111280.0,111270.0,0.1563]
[1756857017686,0.5514351,111280.0,111270.0,0.1563]
[1756857018756,0.90094503,111280.0,111270.0,0.1563]
[1756857023613,0.5514351,111280.0,111270.0,0.1563]
[1756857023851,0.90094503,111280.0,111270.0,0.1563]
[1756857024055,0.90310503,111280.0,111270.0,0.1563]
[1756857025607,0.90310503,111280.0,111270.0,0.15124]
[1756857025818,0.90614503,111280.0,111270.0,0.15132]
[1756857026034,0.5566351,111280.0,111270.0,0.15132]
[1756857026250,0.90310503,111280.0,111270.0,0.15132]
[1756857031658,0.90310503,111280.0,111270.0,0.001]
[1756857031860,0.90310503,111280.0,111270.0,0.15128]
[1756857033958,0.90310503,111280.0,111270.0,0.001]
[1756857034100,0.90310503,111280.0,111270.0,0.15124]
[1756857034914,0.90614503,111280.0,111270.0,0.001]
[1756857035131,0.90614503,111280.0,111270.0,0.15124]
[1756857035974,0.90310503,111280.0,111270.0,0.15124]
[1756857038062,0.5535951,111280.0,111270.0,0.1563]
[1756857038266,0.90310503,111280.0,111270.0,0.1563]
[1756857039331,0.90310503,111280.0,111270.0,0.15327]
[1756857040095,0.90310503,111280.0,111270.0,0.15124]
[1756857041381,0.90619503,111280.0,111270.0,0.15132]
[1756857042263,0.90310503,111280.0,111270.0,0.15132]
[1756857042469,0.90310503,111280.0,111270.0,0.15653]
[1756857043850,0.5514351,111280.0,111270.0,0.15653]
[1756857044544,0.90094503,111280.0,111270.0,0.15653]
[1756857045014,0.5514351,111280.0,111270.0,0.15653]
[1756857047805,0.90094503,111280.0,111270.0,0.15653]
[1756857048477,0.90306503,111280.0,111270.0,0.15653]
[1756857048640,0.90306503,111280.0,111270.0,0.15333]
[1756857049157,0.90306503,111280.0,111270.0,0.15653]
[1756857050868,0.90094503,111280.0,111270.0,0.15653]
[1756857055115,0.90306503,111280.0,111270.0,0.15653]
[1756857056652,0.90094503,111280.0,111270.0,0.15653]
[1756857059635,0.90306503,111280.0,111270.0,0.15653]
[1756857059843,0.90306503,111280.0,111270.0,0.15333]
[1756857060046,0.90306503,111280.0,111270.0,0.001]
[1756857060261,0.90615503,111280.0,111270.0,0.15144]
[1756857060702,0.90306503,111280.0,111270.0,0.15144]
[1756857060902,0.90615503,111280.0,111270.0,0.15144]
[1756857063709,0.90615503,111280.0,111270.0,0.001]
[1756857063932,0.90615503,111280.0,111270.0,0.15148]
[1756857067485,0.90615503,111280.0,111270.0,0.1514]
[1756857068953,0.5535551,111280.0,111270.0,0.1514]
[1756857069159,0.90306503,111280.0,111270.0,0.1514]
[1756857069963,0.90094503,111280.0,111270.0,0.15672]
[1756857071583,1.25239008,111280.0,111270.0,0.15672]
[1756857072007,1.25239008,111280.0,111270.0,0.15348]
[1756857072217,1.25239008,111280.0,111270.0,0.1514]
[1756857073714,1.25239008,111280.0,111270.0,0.15672]
[1756857075650,0.5514351,111280.0,111270.0,0.15672]
[1756857075837,0.90091759,111280.0,111270.0,0.15672]
[1756857077494,0.5514351,111280.0,111270.0,0.15672]
[1756857077700,0.90091759,111280.0,111270.0,0.15672]
[1756857079458,0.90290759,111280.0,111270.0,0.15672]
[1756857079679,0.90290759,111280.0,111270.0,0.15668]
[1756857079892,1.25239008,111280.0,111270.0,0.15344]
[1756857080323,1.25239008,111280.0,111270.0,0.15668]
[1756857089091,0.5534251,111280.0,111270.0,0.15668]
[1756857089270,0.90290759,111280.0,111270.0,0.15668]
[1756857090786,1.25239008,111280.0,111270.0,0.15668]
[1756857091511,0.5514351,111280.0,111270.0,0.15668]
[1756857091725,1.25040008,111280.0,111270.0,0.15668]
[1756857093778,1.25239008,111280.0,111270.0,0.15668]
[1756857095932,1.25239008,111280.0,111270.0,0.15344]
[1756857096064,1.25239008,111280.0,111270.0,0.15136]
[1756857096546,1.25239008,111280.0,111270.0,0.15668]
[1756857097528,1.25040008,111280.0,111270.0,0.15668]
[1756857097919,0.90290759,111280.0,111270.0,0.15668]
[1756857098896,1.25239008,111280.0,111270.0,0.15668]
[1756857106686,1.25239008,111280.0,111270.0,0.15344]
[1756857107689,1.25239008,111280.0,111270.0,0.15662]
[1756857107843,0.5534251,111280.0,111270.0,0.15662]
[1756857108046,1.25239008,111280.0,111270.0,0.15662]
[1756857108825,0.90290759,111280.0,111270.0,0.15662]
[1756857113751,0.2114351,111280.0,111270.0,0.3328389]
[1756857113989,0.2114351,111280.0,111270.0,0.68232139]
[1756857114422,0.00468921,111280.0,111270.0,0.77423738]
[1756857115106,0.00468921,111280.0,111270.0,0.80125088]
[1756857116677,0.00468921,111280.0,111270.0,0.82476088]
[1756857119572,0.00468921,111280.0,111270.0,0.67692494]
[1756857119764,0.00468921,111280.0,111270.0,0.82716494]
[1756857121817,0.00468921,111280.0,111270.0,1.17664743]
[1756857122241,0.00468921,111280.0,111270.0,0.47768245]
[1756857122453,0.00468921,111280.0,111270.0,0.82716494]
[1756857122666,0.00468921,111280.0,111270.0,1.17664743]
[1756857123311,0.00059909,111280.0,111270.0,1.17664743]
[1756857123527,0.09991608,111300.0,111290.0,0.17971066]
[1756857123741,0.09991608,111300.0,111290.0,0.83466914]
[1756857124018,0.09991608,111300.0,111290.0,0.83997914]
[1756857124229,0.09991608,111300.0,111290.0,0.86698856]
[1756857124865,0.10091608,111300.0,111290.0,0.86698856]
[1756857125535,0.09991608,111300.0,111290.0,0.86698856]
[1756857125701,0.10191608,111300.0,111290.0,0.86698856]
[1756857125919,0.09991608,111300.0,111290.0,0.86698856]
[1756857126330,0.09991608,111300.0,111290.0,0.86898856]
[1756857127306,0.27961059,111300.0,111290.0,0.86898856]
[1756857127708,0.27961059,111300.0,111290.0,0.87098856]
[1756857127911,0.09991608,111300.0,111290.0,0.87098856]
[1756857129526,0.09991608,111300.0,111290.0,0.88012376]
[1756857129738,0.27961059,111300.0,111290.0,0.88012376]
[1756857130539,0.09991608,111300.0,111290.0,0.88012376]
[1756857131504,0.09991608,111300.0,111290.0,0.53064127]
[1756857131778,0.09991608,111300.0,111290.0,0.8798612]
[1756857133506,0.09991608,111300.0,111290.0,0.870726]
[1756857136775,0.09991608,111300.0,111290.0,0.894116]
[1756857136984,0.09991608,111300.0,111290.0,0.90319896]
[1756857138274,0.09991608,111300.0,111290.0,0.55397903]
[1756857138495,0.09991608,111300.0,111290.0,0.90319896]
[1756857146935,0.09991608,111300.0,111290.0,0.75303896]
[1756857147151,0.09991608,111300.0,111290.0,0.90319896]
[1756857163965,0.09991608,111300.0,111290.0,0.75303896]
[1756857164179,0.09991608,111300.0,111290.0,0.90315896]
[1756857167598,0.09991608,111300.0,111290.0,0.90319896]
[1756857168517,0.09991608,111300.0,111290.0,0.55397903]
[1756857168719,0.09991608,111300.0,111290.0,0.90319896]
[1756857169047,0.09991608,111300.0,111290.0,0.55397903]
[1756857169252,0.09991608,111300.0,111290.0,0.87980896]
[1756857169454,0.10188608,111300.0,111290.0,0.87662896]
[1756857169761,0.09991608,111300.0,111290.0,0.87958896]
[1756857170465,0.09991608,111300.0,111290.0,0.72942896]
[1756857170756,0.09991608,111300.0,111290.0,0.87958896]
[1756857171060,0.09991608,111300.0,111290.0,0.87966896]
[1756857172417,0.09991608,111300.0,111290.0,1.14886896]
[1756857172846,0.09991608,111300.0,111290.0,1.14882896]
[1756857180830,0.10188608,111300.0,111290.0,0.64431903]
[1756857181011,0.10484608,111300.0,111290.0,1.14373896]
[1756857181275,0.10188608,111300.0,111290.0,0.79451903]
[1756857182033,0.09991608,111300.0,111290.0,0.79963903]
[1756857182234,0.09991608,111300.0,111290.0,1.14885896]
[1756857182782,0.10188608,111300.0,111290.0,1.14885896]
[1756857182989,0.10188608,111300.0,111290.0,1.18972693]
[1756857184664,0.10484608,111300.0,111290.0,0.835387]
[1756857185150,0.10188608,111300.0,111290.0,0.835387]
[1756857185596,0.10188608,111300.0,111290.0,1.18460693]
[1756857185803,0.10188608,111300.0,111290.0,0.835387]
[1756857187966,0.10188608,111300.0,111290.0,0.840507]
[1756857190361,0.09991608,111300.0,111290.0,0.840507]
[1756857190565,0.09991608,111300.0,111290.0,1.18972693]
[1756857190770,0.09991608,111300.0,111290.0,1.21229693]
[1756857191553,0.09991608,111300.0,111290.0,1.29303076]
[1756857196969,0.09991608,111300.0,111290.0,1.65396958]
[1756857197186,0.09991608,111300.0,111290.0,2.00312003]
[1756857201946,0.09991608,111300.0,111290.0,2.44752003]
[1756857204467,0.09991608,111300.0,111290.0,2.09836958]
[1756857204906,0.09991608,111300.0,111290.0,2.44752003]
[1756857207940,0.09991608,111300.0,111290.0,2.09836958]
[1756857208589,0.09991608,111300.0,111290.0,2.44752003]
[1756857212925,0.09991608,111300.0,111290.0,2.43839707]
[1756857215540,0.09991608,111300.0,111290.0,2.35759376]
[1756857216166,1e-08,111300.0,111290.0,2.52026334]
[1756857216377,0.13563248,111310.0,111300.0,0.54063333]
[1756857216578,0.13567937,111310.0,111300.0,1.5647202]
[1756857216824,0.13567937,111310.0,111300.0,1.5667602]
[1756857216994,0.13567937,111310.0,111300.0,1.59375914]
[1756857217608,0.13567937,111310.0,111300.0,1.59875914]
[1756857218039,0.13667937,111310.0,111300.0,1.60275914]
[1756857219780,0.13667937,111310.0,111300.0,2.31635914]
[1756857223228,0.13667937,111310.0,111300.0,1.61805824]
[1756857223434,0.13667937,111310.0,111300.0,2.31635914]
[1756857224527,0.13258067,111320.0,111310.0,1.23891809]
[1756857224753,0.13304971,111320.0,111310.0,1.48388408]
[1756857224969,0.13304971,111320.0,111310.0,1.96663406]
[1756857225177,0.13304971,111320.0,111310.0,1.99362934]
[1756857225863,0.13304971,111320.0,111310.0,1.99562934]
[1756857226288,0.13304971,111320.0,111310.0,1.99862934]
[1756857227173,0.14480824,111330.0,111320.0,0.54060105]
[1756857227388,0.14480824,111330.0,111320.0,1.89336839]
[1756857227658,0.14480824,111330.0,111320.0,1.54920794]
[1756857227866,0.14480824,111330.0,111320.0,1.97620205]
[1756857228745,0.14480824,111330.0,111320.0,1.82612205]
[1756857228962,0.14678824,111330.0,111320.0,1.97121205]
[1756857229168,0.14678824,111330.0,111320.0,1.97321205]
[1756857229790,0.14678824,111330.0,111320.0,1.97627205]
[1756857229970,0.14678824,111330.0,111320.0,1.97920205]
[1756857231668,0.14678824,111330.0,111320.0,2.69280204]
[1756857232374,0.14678824,111330.0,111320.0,2.73261491]
[1756857233663,0.14678824,111330.0,111320.0,2.03431401]
[1756857233869,0.14678824,111330.0,111320.0,2.73261491]
[1756857234080,0.14678824,111330.0,111320.0,1.87924401]
[1756857234307,0.14678824,111330.0,111320.0,2.72762491]
[1756857235131,0.14678824,111330.0,111320.0,2.73261491]
[1756857235336,0.14678824,111330.0,111320.0,2.57754491]
[1756857235561,0.14678824,111330.0,111320.0,2.72762491]
[1756857236433,0.14678824,111330.0,111320.0,2.73261491]
[1756857237206,0.14678824,111330.0,111320.0,2.72762491]
[1756857237432,0.14678824,111330.0,111320.0,2.73261491]
[1756857239915,0.14678824,111330.0,111320.0,2.03431401]
[1756857240125,0.14678824,111330.0,111320.0,2.73261491]
[1756857241092,0.14678824,111330.0,111320.0,2.72968491]
[1756857241306,0.14678824,111330.0,111320.0,2.72762491]
[1756857241815,0.14678824,111330.0,111320.0,2.73261491]
[1756857242030,0.14678824,111330.0,111320.0,2.03431401]
[1756857242241,0.14678824,111330.0,111320.0,2.73261491]
[1756857243581,0.14480824,111330.0,111320.0,2.73261491]
[1756857245524,0.14480824,111330.0,111320.0,2.81323102]
[1756857246324,0.14678824,111330.0,111320.0,2.81323102]
[1756857247543,0.14480824,111330.0,111320.0,2.81323102]
[1756857247929,0.14678824,111330.0,111320.0,2.81323102]
[1756857248911,0.14480824,111330.0,111320.0,2.81323102]
[1756857249341,0.14480824,111330.0,111320.0,2.11493012]
[1756857249545,0.14480824,111330.0,111320.0,2.81323102]
[1756857250915,0.14678824,111330.0,111320.0,2.81323102]
[1756857251470,0.14678824,111330.0,111320.0,1.95986012]
[1756857251692,0.14994824,111330.0,111320.0,1.70994012]
[1756857251909,0.14994824,111330.0,111320.0,2.05897583]
[1756857251910,0.14678824,111330.0,111320.0,2.05897583]
[1756857253132,0.14678824,111330.0,111320.0,2.05901583]
[1756857253442,0.14678824,111330.0,111320.0,2.06418583]
[1756857254226,0.14480824,111330.0,111320.0,2.26202583]
[1756857255583,0.14480824,111330.0,111320.0,1.81762583]
[1756857255870,0.14480824,111330.0,111320.0,1.73700972]
[1756857262840,0.14480824,111330.0,111320.0,1.38797401]
[1756857263242,0.14480824,111330.0,111320.0,1.73700972]
[1756857269721,0.14480824,111330.0,111320.0,1.8496793]
[1756857270364,0.14480824,111330.0,111320.0,1.50064359]
[1756857270759,0.14480824,111330.0,111320.0,1.8496793]
[1756857276333,0.14480824,111330.0,111320.0,1.50064359]
[1756857276550,0.14480824,111330.0,111320.0,1.8496793]
[1756857277109,0.14678824,111330.0,111320.0,1.8496793]
[1756857277838,0.14480824,111330.0,111320.0,1.8496793]